Cogmind - Beta 13 @@@ ROGUE MODE // 2024.04.10 @ 22:52:04 Player: JackZewap Result: Self-destructed Performance ------------- Evolutions (1) 500 Regions Visited (2) 400 Robots Destroyed (60) 300 Value Destroyed (1260) 1260 Prototype IDs (4) 80 Alien Tech Used (0) 0 Bonus (14) 14 TOTAL SCORE: 2554 Bonus ------- High Alert Combat Kills 14 Cogmind --------- Core Integrity 301/400 Matter 137/300 Energy 265/265 System Corruption 1% Temperature Cool (33) Movement Rolling (110) Ox1 Location -9/Materials Parts ------- > --- POWER (1) -------- Improved Ion Engine > --- PROPULSION (2) --- Compact Wheel Armored Wheel > --- UTILITY (4) ------ High-capacity Storage Unit Recoil Stabilizer Light Armor Plating > --- WEAPON (2) ------- Improved Light Cannon > --- INVENTORY (20) --- Ion Engine Ion Engine Light Ion Engine Armored Wheel Small Storage Unit Recoil Stabilizer Light Armor Plating Improved EM Shotgun Improved Assault Rifle Improved Assault Rifle Light Cannon Light Cannon Light Cannon Datajack Peak State ------------ > --- POWER ------------ Improved Ion Engine > --- PROPULSION ------- Compact Wheel Compact Wheel > --- UTILITY ---------- High-capacity Storage Unit Recoil Stabilizer Medium Armor Plating Hacking Suite > --- WEAPON ----------- Light Cannon Improved Light Cannon > --- INVENTORY -------- Ion Engine Ion Engine Light Ion Engine Armored Wheel Armored Wheel Small Storage Unit Recoil Stabilizer Light Armor Plating Light Armor Plating Light Armor Plating Improved EM Shotgun Light Cannon Light Cannon Light Cannon Light Cannon Datajack [Rating: 18] Favorites ----------- Power Ion Engine Engine Ion Engine Propulsion Compact Wheel Wheel Compact Wheel Utility High-capacity Storage Unit Device Recoil Stabilizer Storage High-capacity Storage Unit Hackware Hacking Suite Protection Medium Armor Plating Weapon Light Cannon Energy Gun Improved EM Shotgun Ballistic Gun Light Assault Rifle Ballistic Cannon Light Cannon Special Melee Weapon Datajack Build | -11 -10 -9 ------- Run | Yrd Mat Mat Slots Evolved 2 | . . 2 Power . | . . . Propulsion . | . . . Utility 2 | . . 2 Weapon . | . . . Parts Attached 39 | 6 12 21 Power 5 | 1 1 3 Engine 5 | 1 1 3 Core . | . . . Reactor . | . . . Propulsion 9 | 2 2 5 Treads . | . . . Leg . | . . . Wheel 9 | 2 2 5 Hover . | . . . Flight . | . . . Utility 12 | 1 4 7 Device 1 | . . 1 Storage 3 | 1 2 . Processor . | . . . Hackware 1 | . 1 . Protection 7 | . 1 6 Artifact . | . . . Weapon 13 | 2 5 6 Energy Gun 1 | . . 1 Energy Cannon . | . . . Ballistic Gun 4 | 2 2 . Ballistic Cannon 7 | . 3 4 Launcher . | . . . Special Weapon . | . . . Impact Weapon . | . . . Slashing Weapon . | . . . Piercing Weapon . | . . . Special Melee Weapon 1 | . . 1 Unidentified Prototypes 1 | . . 1 Parts Lost 11 | . 3 8 Power 1 | . 1 . Propulsion 4 | . 2 2 Utility 4 | . . 4 Weapon 2 | . . 2 Highest Loss Streak 5 | . 3 5 To Critical Strikes 1 | . . 1 Average Slot Usage (%) 88 | . 82 93 Engine 6 | . 8 5 Wheel 22 | . 22 21 Device 1 | . . 2 Storage 12 | . 15 11 Hackware 8 | . 6 9 Protection 10 | . . 19 Ballistic Gun 2 | . 5 . Ballistic Cannon 21 | . 22 21 Naked Turns . | . . . Heaviest Build 65 | 11 55 65 Greatest Support 32 | 32 32 32 Greatest Overweight (x) 3 | . 3 3 Average Overweight (x) 1 | . 1 1 Largest Inventory Capacity 20 | 8 20 20 Average Capacity 19 | 7 19 20 Most Carried 17 | . 8 17 Average Carried 7 | . 5 9 Final Capacity 20 | 8 20 20 Final Carried 14 | . 8 14 Class Distribution -------------------- 95% | Mutant 4% | Scavenger-Mutant Dominant Class ---------------- Mutant | -10/Materials Mutant | -9/Materials Resources | -11 -10 -9 ----------- Run | Yrd Mat Mat Matter Collected 1365 | 233 543 589 Remotely . | . . . Salvage Created 1456 | . 732 724 Parts 106 | . 48 58 Haulers Intercepted 5 | . 2 3 Recyclers Shooed . | . . . Parts Field Recycled . | . . . Retrieved Matter . | . . . Parts Self-Destructed . | . . . Prevented . | . . . Kills | -11 -10 -9 ------- Run | Yrd Mat Mat Combat Hostiles Destroyed 44 | . 20 24 Guns 5 | . 5 . Cannons 39 | . 15 24 Classes Destroyed 9 | . 7 2 Worker 3 | . . 3 Builder 1 | . 1 . Hauler 5 | . 2 3 Recycler 2 | . 1 1 Operator 1 | . 1 . Watcher 4 | . 2 2 Swarmer 19 | . 6 13 Grunt 21 | . 14 7 Sentry 4 | . . 4 Best Kill Streak 6 | . 3 6 Combat Bots Only 5 | . 3 5 Max Kills in Single Turn 2 | . 1 2 Gunslinging . | . . . Exploded . | . . . Melee . | . . . Uniques/NPCs Destroyed . | . . . Combat | -11 -10 -9 -------- Run | Yrd Mat Mat Hostile Shots Fired 208 | . 84 124 Missed 55 | . 18 37 Damage Taken 1437 | . 591 846 Core 238 | . 139 99 Absorbed by Shields . | . . . Core Remaining (%) 72 | 100 44 . Volleys Fired 137 | . 64 73 Largest 2 | . 2 2 Hottest 74 | . 70 74 Shots Fired 269 | . 130 139 Gun 46 | . 46 . Cannon 223 | . 84 139 Launcher . | . . . Special . | . . . Kinetic 269 | . 130 139 Thermal . | . . . Explosive . | . . . Electromagnetic . | . . . Robot Hit Streak 13 | . 8 13 Robot Miss Streak 5 | . 5 5 Penetration Max . | . . . Secondary Targets . | . . . Shots Hit Robots 161 | . 71 90 Core Hits 70 | . 34 36 Critical Kills . | . . . Critical Parts Destroyed . | . . . Critical Strikes 8 | . 1 7 Blast 8 | . 1 7 Melee Attacks 7 | . . 7 Impact . | . . . Slashing . | . . . Piercing . | . . . Sneak Attacks 7 | . . 7 Combat Hostiles . | . . . Follow-up Attacks . | . . . Damage Inflicted 2710 | . 1085 1625 Guns 253 | . 253 . Cannons 2446 | . 832 1614 Explosions . | . . . Melee . | . . . Ramming 11 | . . 11 Kinetic 2699 | . 1085 1614 Thermal . | . . . Explosive . | . . . Electromagnetic . | . . . Impact . | . . . Slashing . | . . . Piercing . | . . . Highest Corruption 3 | . 3 1 Average Corruption 2 | . 2 1 Corruption Purged . | . . . Corruption Blocked . | . . . Effects 16 | . 16 . Message Errors 5 | . 5 . Matter Fused 3 | . 3 . Energy Discharges 1 | . 1 . Parts Rejected 1 | . 1 . Data Loss (minor) 2 | . 2 . Data Loss (major) 1 | . 1 . Misfires 3 | . 3 . Overload Shots . | . . . Overflow Damage 36 | . 18 18 Projectiles 36 | . 18 18 Explosions . | . . . Melee . | . . . Knockbacks 21 | . 9 12 Impact 1 | . . 1 Kinetic 20 | . 9 11 Secondary . | . . . Self-Inflicted Damage 5 | . . 5 Shots . | . . . Rammed 2 | . . 2 Targets Rammed 2 | . . 2 Kicked . | . . . Crushed . | . . . Highest Temperature 180 | . 96 180 Average Temperature 44 | . 23 52 Received Heat Transfer 324 | . 141 183 Siege Activations . | . . . Robots Corrupted . | . . . Combat Hostiles . | . . . Parts Fried . | . . . Impact Corruptions . | . . . Robots Melted . | . . . Combat Hostiles . | . . . Parts Melted . | . . . Heat Transferred . | . . . Parts Sabotaged . | . . . Parts Stolen . | . . . Parts Stripped . | . . . Power Chain Reactions . | . . . Alert | -11 -10 -9 ------- Run | Yrd Mat Mat Peak Influence 567 | . 262 567 Initial 1 | . . 1 Average 98 | . 81 115 Maximum Alert Level 2 | . 1 2 Low Security (%) 83 | 100 91 75 Level 1 13 | . 8 18 Level 2 3 | . . 5 Level 3 . | . . . Level 4 . | . . . Level 5 . | . . . High Security . | . . . Max Security . | . . . Squads Dispatched 5 | . 4 1 Investigation 4 | . 3 1 Extermination . | . . . Reinforcement 1 | . 1 . Assault . | . . . Garrison . | . . . Intercept . | . . . Searches Triggered . | . . . Construction Impeded . | . . . Haulers Reinforced . | . . . Active Scanning Responses . | . . . Cargo Convoy Interrupts . | . . . Stealth | -11 -10 -9 --------- Run | Yrd Mat Mat Distress Signals 3 | . 1 2 Communications Jammed . | . . . Distress Signals . | . . . Times Spotted 74 | . 30 44 Peak Tracking Total 6 | . 4 6 Tactical Retreats 8 | . 1 7 Traps | -11 -10 -9 ------- Run | Yrd Mat Mat Traps Triggered 2 | . 1 1 Indirectly . | . . . Trap Hack Attempts . | . . . Triggered . | . . . Disarmed . | . . . Reprogrammed . | . . . Reused . | . . . Traps Extracted . | . . . Installed . | . . . Triggered . | . . . Machines | -11 -10 -9 ---------- Run | Yrd Mat Mat Machines Disabled 4 | . 1 3 Max in Single Turn 1 | . 1 1 Machines Repaired . | . . . Machines Dismantled . | . . . Machines Sabotaged . | . . . Overloaded Fab Kills . | . . . Hacking | -11 -10 -9 --------- Run | Yrd Mat Mat Machines Accessed 12 | . 8 4 Terminals 12 | . 8 4 Fabricators . | . . . Repair Stations . | . . . Recycling Units . | . . . Scanalyzers . | . . . Garrison Access . | . . . Total Hacks 35 | . 20 15 Successful 22 | . 11 11 Failed 13 | . 9 4 Catastrophic 2 | . 2 . Database Lockouts . | . . . Manual 27 | . 17 10 Terminals 35 | . 20 15 Fabricators . | . . . Repair Stations . | . . . Recycling Units . | . . . Scanalyzers . | . . . Garrison Access . | . . . Terminal Hacks 10 | . 5 5 Robot Analysis 1 | . 1 . Prototype ID Bank 1 | . . 1 Unreport Threat 2 | . 2 . Locate Traps 2 | . 1 1 Dispatch Records 2 | . 1 1 Transport Status 1 | . . 1 Hauler Manifests 1 | . . 1 Fabricator Hacks . | . . . Repair Station Hacks . | . . . Recycling Unit Hacks . | . . . Scanalyzer . | . . . Garrison Access Hacks . | . . . Unauthorized Hacks 12 | . 6 6 Terminals 12 | . 6 6 Track 1 | . . 1 Assimilate 1 | . . 1 Botnet 10 | . 6 4 Fabricators . | . . . Repair Stations . | . . . Recycling Units . | . . . Scanalyzers . | . . . Garrison Access . | . . . Data Cores Recovered 1 | . 1 . Used . | . . . Hacking Detections 11 | . 8 3 Full Trace Events 6 | . 4 2 Feedback Events 2 | . 1 1 Corruption 2 | . 1 1 Feedback Blocked . | . . . Robot Schematics Acquired . | . . . Robots Built . | . . . Authchips . | . . . Time . | . . . Total Robot Build Rating . | . . . Part Schematics Acquired . | . . . Parts Built . | . . . Authchips . | . . . Time . | . . . Total Part Build Rating . | . . . Parts Repaired . | . . . Time . | . . . Parts Recycled . | . . . Recycled Matter . | . . . Retrieved Matter . | . . . Retrieved Components . | . . . Parts Scanalyzed . | . . . Part Schematics Acquired . | . . . Parts Damaged . | . . . Bothacking | -11 -10 -9 ------------ Run | Yrd Mat Mat Used RIF Installer . | . . . Robots Hacked 2 | . . 2 Non-combat 2 | . . 2 Combat . | . . . Robot Hacks Applied 5 | . . 5 parse_system 3 | . . 3 no_distress 2 | . . 2 Relay Couplers Released . | . . . Fabnet Peak Effective % . | . . . Robots Rewired . | . . . Allies Hacked . | . . . Hacks Repelled . | . . . Allies | -11 -10 -9 -------- Run | Yrd Mat Mat Total Allies 1 | . . 1 Largest Group 1 | . . 1 Highest-Rated Group 10 | . . 10 Highest-Rated Ally 10 | . . 10 Total Orders . | . . . Ally Attacks . | . . . Total Damage . | . . . Kills . | . . . Allies Corrupted . | . . . Allies Melted . | . . . Intel | -11 -10 -9 ------- Run | Yrd Mat Mat Robot Analysis Total 1 | . 1 . Derelict Logs Recovered . | . . . Drone Launches . | . . . Drone Recoveries . | . . . Exploration | -11 -10 -9 ------------- Run | Yrd Mat Mat Turns Passed 2806 | 42 1253 1511 Spaces Moved 1489 | 34 820 635 Core 1 | 1 . . Treads . | . . . Legs . | . . . Wheels 1488 | 33 820 635 Hover . | . . . Flight . | . . . Fastest Speed 50 | 50 100 115 Average Speed 118 | 98 119 118 Slowest Speed 145 | 100 145 145 Overloaded Moves . | . . . Propulsion Burnouts . | . . . Robots Hopped . | . . . Cave-ins Triggered . | . . . Exploration Rate (%) 44 | 3 83 48 Regions Visited 2 Branch Regions . Pre-discovered Areas . | . . . Known Exits Taken . | . . . Unknown Exits Taken 2 | 1 1 . Scrap Searched . | . . . Spaces Dug . | . . . Terrain Destroyed . | . . . Melee . | . . . Projectile . | . . . AOE . | . . . Terrain Rammed . | . . . Walls Destroyed . | . . . Machines Disabled . | . . . Actions | -11 -10 -9 --------- Run | Yrd Mat Mat Total 2251 | 39 966 1246 Wait 552 | . 55 497 Move 1487 | 33 819 635 Hop . | . . . Pick Up 15 | . 8 7 Fast Attach 19 | 6 8 5 Attach 11 | . 2 9 Detach 8 | . 4 4 Swap 9 | . 2 7 Drop 4 | . 4 . Fire 137 | . 64 73 Melee 7 | . . 7 Ram 2 | . . 2 Kick . | . . . Crush . | . . . Escape Stasis . | . . . Rewire . | . . . Trap . | . . . Miscellaneous . | . . . Route ------- -11/Scrapyard -10/Materials (discovered 4 exits: *Mat x2 / [*Min x2]) -9/Materials (discovered 2 exits: [*Min] / [*Sto]) History --------- Turn | Location | Event 14 | -11/Scrapyard | Discovered new exit (range 16) 43 | -11/Scrapyard | Entered Materials 165 | -10/Materials | Discovered new exit (range 13) 306 | -10/Materials | Build established: Mutant 407 | -10/Materials | Discovered new exit (range 9) 652 | -10/Materials | Discovered new exit (range 13) 804 | -10/Materials | Core integrity fell below 50% 849 | -10/Materials | Lost 3 parts (1p2n) 1157 | -10/Materials | Discovered new exit (range 5) 1296 | -10/Materials | Entered another Materials area 1296 | -9/Materials | Evolved 2 slots: Utility x2 2558 | -9/Materials | Discovered new exit (range 7) 2632 | -9/Materials | Discovered new exit (range 7) 2807 | -9/Materials | Self-destructed Last Messages --------------- 02780_ S-10 Pest knocked back. 02783_ S-10 Pest destroyed. 02783_ K-01 Serf collects debris. 02790_ Critical hit (Destroy). 02790_ Lgt. Cannon destroyed. 02791_ Destroyed Flight Unit. 02793_ S-10 Pest Lgt. Assault Rifle blasted off. 02793_ S-10 Pest destroyed. 02794_ K-01 Serf collects debris. 02796_ Slammed into K-01 Serf. 02796_ K-01 Serf knocked back. 02797_ Acquired 26 matter. 02799_ Slammed into U-05 Engineer. 02800_ Acquired 4 matter. 02801_ U-05 Engineer destroyed. 02801_ K-01 Serf collects debris. 02803_ Lgt. Cannon destroyed. 02803_ Electrolysis Chamber disabled. 02805_ Lgt. Armor Plating destroyed. 02806_ K-01 Serf collects debris. Map ----- +----------------------------------------------------+ | ????????????????????????????# ### ############[ | | ??????????????????########### ## #"""""""##%! | | ??????????????????# # #? #" |"| "## % | | ??????????????????# """ "" # #### ##" "##% | | ???????? ####### "" % "" # % | | ???????????? +%"% """ + < | | ???????????????####% # | | ??????????????????#% * # #####+## ##+# | | ??????????????????#[ =% # # ######### | | ??????????????????# ! # + """ =#???????#* | | ??????????????????#+############ """ #???????#** | | ??????????????????# #??????????# """ #???????#** | | ??????????????????# #??????????# #???????# | | ??????????????????#*#??????????# #???????# | | ????????????????### ###????????########???????#### | | ????????????????# = #########??????????????????? | | ??????????+###### =#% #??????????????????? | | ???# < %+% * #??????????????????? | | ???# ###### #*%%= #??????????????????? | | ????????????????# ###Y#####??????????????????? | | ????????????????### ###?#[#??????????????????????? | | ??????????????????# #???#=#??????????????????????? | | ??????????????????# #???#=#??????????????????????? | | ??????????????????# #???# #??????????????????????? | | ??????????????????# #???# ####### ## !#?????????? | | ??????????????????# #####@[%|= !#?????????? | | ??????????????????# # [=[k* !#?????????? | | ??????????????????# # = ! !#?????????? | | ??????????????????# # !##?????????? | | ??????????????????? ####??????????? | | ??????????????????# #?????????????? | | ??????????????????# !! "" #?????????????? | | ??????????????????# !! """ #?????????????? | | ??????????????????# !! """ #?????????????? | | ??????????????????# gg #?????????????? | | ??????????????????# ?? ????????????? | | ??????????????????" """ "??? ????????????? | | ?????????????????R """ "???? ????????????? | | ?????????????????"" ???" "????? ? ??????????????? | | ??????????????????# ??? ???????????????????????? | | ???????????????????????? ???????????????????????? | | ???????????????????????? ???????????????????????? | | ?????????????????????????????????????????????????? | | ?????????????????????????????????????????????????? | | ?????????????????????????????????????????????????? | | ?????????????????????????????????????????????????? | | ?????????????????????????????????????????????????? | | ?????????????????????????????????????????????????? | | ?????????????????????????????????????????????????? | | ?????????????????????????????????????????????????? | +----------------------------------------------------+ Best States ------------- Heat Dissipation 28 Energy Generation 12 Energy Capacity 265 Matter Stores 300 Matter Capacity 300 Sight Range 16 Terrain Scan Density 10 Armor Coverage 450 Evasion (%) 40 Recoil Reduction 4 Offensive Hacking 10 Item Schematics ----------------- None Robot Schematics ------------------ None Fabricated ------------ Nothing Alien Tech Used ----------------- None Achievements -------------- None Challenges ------------ None Game ------ Seed ThiefHypercooledStorage Manual? 0 Play Time 00:23:25 Cumulative 36.4 hours Start 2024.04.10 @ 22:31:21 End 2024.04.10 @ 22:52:04 Sessions 1 Manual Loads 0 Difficulty Rogue Special Mode None Game No. 43 Rogue 37 Adventurer 6 Explorer 0 Win Type - Total 0 Types 0/0/0/0/0/0/0/0/0 Lore% 18 Gallery% 36 Achievement% 29 Wizard Run 0 Options --------- Layout 0 ASCII 0 Keyboard 1 Movement Numpad Keybinds 0 Fullscreen 1 Font 18/SmallcapsGlow Map View 76x50 Zoom Use 0% Tactical HUD 1 Map Filters NONE Filters NONE Steam 1 RUN: b4a9809d-339b-4f31-9f0b-b67970f08e4e